fUST/lending_fUST_20241212
["ID","MTS","AMOUNT","RATE_DAILY","PERIOD"]
[345047998,1733949047539,-153.45,0.000305,31]
[345047999,1733949047548,-153.45,0.000305,31]
[345048000,1733949047558,-500.0,0.00030518,2]
[345048001,1733949047568,-151.0,0.00030523,7]
[345048003,1733949047578,-500.0,0.00030529,7]
[345048005,1733949047589,-520.49,0.00030529,7]
[345048007,1733949047598,-500.0,0.00030529,7]
[345048009,1733949047608,-8030.60851572,0.0003053,3]
[345048011,1733949047617,-161.73911472,0.00030536,2]
[345048013,1733949047626,-652.807,0.00030539,7]
[345048014,1733949047635,-150.0,0.00030539,7]
[345048016,1733949047647,-500.0,0.00030544,14]
[345048018,1733949047657,-500.0,0.00030552,14]
[345048020,1733949047666,-500.0,0.00030561,14]
[345048021,1733949047676,-500.0,0.0003057,14]
[345048022,1733949047685,-500.0,0.00030579,14]
[345048023,1733949047695,-161.73911472,0.00030579,2]
[345048024,1733949047704,-9846.51709765,0.00030579,2]
[345048025,1733949047715,-500.0,0.00030586,7]
[345048026,1733949047725,-500.0,0.00030587,2]
[345048027,1733949047735,-500.0,0.00030588,14]
[345048028,1733949047745,-500.0,0.00030592,7]
[345048029,1733949047755,-500.0,0.00030592,7]
[345048030,1733949047765,-520.49,0.00030592,7]
[345048031,1733949047775,-520.49,0.00030592,7]
[345048032,1733949047784,-500.0,0.00030592,7]
[345048033,1733949047794,-438.75960045,0.00030592,7]
[345048034,1733949047803,-438.75960045,0.00030592,7]
[345048035,1733949047813,-438.75960045,0.00030592,7]
[345048036,1733949047823,-438.75960045,0.00030592,7]
[345048037,1733949047833,-438.75960045,0.00030592,7]
[345048038,1733949047843,-438.75960045,0.00030592,7]
[345048039,1733949047852,-438.75960045,0.00030592,7]
[345048040,1733949047862,-438.75960045,0.00030592,7]
[345048041,1733949047872,-438.75960045,0.00030592,7]
[345048042,1733949047882,-438.75960045,0.00030592,7]
[345048043,1733949047892,-438.75960045,0.00030592,7]
[345048044,1733949047904,-438.75960045,0.00030592,7]
[345048045,1733949047914,-438.75960045,0.00030592,7]
[345048046,1733949047923,-438.75960045,0.00030592,7]
[345048047,1733949047932,-438.75960045,0.00030592,7]
[345048048,1733949047942,-438.75960045,0.00030592,7]
[345048049,1733949047951,-438.75960045,0.00030592,7]
[345048050,1733949047961,-438.75960045,0.00030592,7]
[345048051,1733949047974,-438.75960045,0.00030592,7]
[345048052,1733949047986,-438.75,0.00030592,7]
[345048053,1733949047995,-658.13940068,0.00030592,7]
[345048054,1733949048005,-658.13940068,0.00030592,7]
[345048055,1733949048015,-658.13940068,0.00030592,7]
[345048056,1733949048026,-658.13940068,0.00030592,7]
[345048057,1733949048035,-658.13940068,0.00030592,7]
[345048058,1733949048050,-658.13940068,0.00030592,7]
[345048059,1733949048060,-658.13940068,0.00030592,7]
[345048060,1733949048071,-658.13940068,0.00030592,7]
[345048061,1733949048081,-658.13940068,0.00030592,7]
[345048062,1733949048091,-658.13940068,0.00030592,7]
[345048063,1733949048101,-658.13940068,0.00030592,7]
[345048064,1733949048111,-658.13940068,0.00030592,7]
[345048065,1733949048124,-658.13940068,0.00030592,7]
[345048066,1733949048135,-658.13940068,0.00030592,7]
[345048067,1733949048145,-658.13940068,0.00030592,7]
[345048068,1733949048156,-658.13940068,0.00030592,7]
[345048069,1733949048167,-658.13940068,0.00030592,7]
[345048070,1733949048177,-658.13940068,0.00030592,7]
[345048071,1733949048188,-658.13940068,0.00030592,7]
[345048072,1733949048198,-658.13,0.00030592,7]
[345048073,1733949048207,-500.0,0.00030596,14]
[345048074,1733949048218,-2000.0,0.000306,3]
[345048075,1733949048227,-500.0,0.00030605,14]
[345048076,1733949048237,-500.0,0.00030614,14]
[345048077,1733949048247,-500.0,0.00030623,14]
[345048078,1733949048258,-600.0,0.00030624,2]
[345048079,1733949048269,-1000.0,0.00030636,8]
[345048080,1733949048278,-500.0,0.00030673,5]
[345048081,1733949048289,-164.711,0.00030677,7]
[345048082,1733949048299,-500.0,0.00030678,7]
[345048083,1733949048309,-496.0007999,0.00030678,7]
[345048084,1733949048319,-520.49,0.00030678,7]
[345048085,1733949048329,-520.49,0.00030678,7]
[345048086,1733949048338,-520.49,0.00030678,7]
[345048087,1733949048347,-520.49,0.00030678,7]
[345048088,1733949048357,-520.49,0.00030678,7]
[345048089,1733949048367,-520.49,0.00030678,7]
[345048090,1733949048376,-520.49,0.00030678,7]
[345048091,1733949048386,-520.49,0.00030678,7]
[345048092,1733949048396,-520.49,0.00030678,7]
[345048093,1733949048406,-520.49,0.00030678,7]
[345048094,1733949048415,-520.49,0.00030678,7]
[345048095,1733949048425,-520.49,0.00030678,7]
[345048096,1733949048435,-520.49,0.00030678,7]
[345048097,1733949048444,-520.49,0.00030678,7]
[345048098,1733949048455,-520.49,0.00030678,7]
[345048099,1733949048465,-520.67,0.00030678,7]
[345048100,1733949048475,-29602.62735507,0.00030679,2]
[345048101,1733949048485,-509801.59524491,0.00030679,10]
[345048103,1733949352422,160.962528,0.00013973,2]
[345048104,1733949352630,160.962528,0.00020447,2]
[345048111,1733949908196,261.68319153,0.00026,60]
[345048155,1733950231813,-803.64483,0.00025592,2]
[345048162,1733950231868,-589.91224973,0.00025592,2]
[345048164,1733950231879,-160.962528,0.00026921,2]
[345048166,1733950231888,-241.17501777,0.00028711,2]
[345048168,1733950231899,-279.32214043,0.00028711,2]
[345048170,1733950231909,-358.8552487,0.00028818,11]
[345048172,1733950231919,-1033.82261087,0.00028835,2]
[345048266,1733950237893,-1863.74300003,0.00028835,2]
[345048268,1733950237902,-213.894179,0.00028916,2]
[345048270,1733950237911,-684.48139,0.00028971,2]
[345048272,1733950237921,-520.979,0.0002915,2]
[345048274,1733950237930,-300.0,0.00029797,2]
[345048276,1733950237939,-300.0,0.00029797,2]
[345048277,1733950237948,-300.0,0.000298,14]
[345048279,1733950237957,-533.0,0.00029823,2]
[345048281,1733950237966,-2161.0,0.00029823,2]
[345048283,1733950237975,-956.27523616,0.00029823,2]
[345048477,1733950239885,-1413.72476384,0.00029823,2]
[345048479,1733950239895,-504.48349823,0.00029863,7]
[345048481,1733950239904,-468.37,0.000299,2]
[345048483,1733950239913,-153.0,0.00029909,2]
[345048485,1733950239922,-153.0,0.00029909,2]
[345048487,1733950239931,-474.88922231,0.00029918,7]
[345048489,1733950239940,-1000.0,0.0003,2]
[345048491,1733950239950,-500.0,0.0003007,11]
[345048493,1733950239959,-158.42091543,0.00030179,30]
[345048495,1733950239968,-151.0,0.00030388,7]
[345048497,1733950239978,-252.0,0.0003043,2]
[345048499,1733950239987,-3200.0,0.0003043,2]
[345048501,1733950239996,-600.0,0.00030624,2]
[345048503,1733950240005,-500.0,0.00030672,7]
[345048505,1733950240014,-500.0,0.00030673,5]
[345048507,1733950240023,-1324.0,0.00030675,42]
[345048509,1733950240032,-500.0,0.00030677,7]
[345048511,1733950240042,-500.0,0.00030677,7]
[345048513,1733950240052,-440.66139914,0.00030677,7]
[345048515,1733950240062,-340.52307126,0.00030677,2]
[345048517,1733950240072,-195.33657944,0.00030678,2]
[345048519,1733950240081,-196.396,0.00030678,26]
[345048521,1733950240090,-151.0,0.00030678,7]
[345048523,1733950240100,-151.0,0.00030678,7]
[345048525,1733950240109,-288.103226,0.00030678,7]
[345048528,1733950240118,-151.0,0.00030678,7]
[345048530,1733950240140,-151.0,0.00030678,7]
[345048532,1733950240154,-432.506025,0.00030678,7]
[345048534,1733950240164,-432.506025,0.00030678,7]
[345048536,1733950240173,-432.506025,0.00030678,7]
[345048538,1733950240182,-432.506025,0.00030678,7]
[345048540,1733950240191,-432.506025,0.00030678,7]
[345048542,1733950240200,-432.506025,0.00030678,7]
[345048544,1733950240210,-432.506025,0.00030678,7]
[345048547,1733950240220,-432.506025,0.00030678,7]
[345048549,1733950240231,-432.506025,0.00030678,7]
[345048551,1733950240241,-432.506025,0.00030678,7]
[345048569,1733950240400,-432.506025,0.00030678,7]
[345048571,1733950240410,-432.506025,0.00030678,7]
[345048573,1733950240420,-432.506025,0.00030678,7]
[345048575,1733950240429,-432.506025,0.00030678,7]
[345048577,1733950240438,-432.506025,0.00030678,7]
[345048579,1733950240447,-432.506025,0.00030678,7]
[345048581,1733950240457,-432.506025,0.00030678,7]
[345048583,1733950240467,-432.506025,0.00030678,7]
[345048585,1733950240479,-432.506025,0.00030678,7]
[345048587,1733950240489,-432.506031,0.00030678,7]
[345048589,1733950240499,-29093.40400802,0.00030678,7]
[345048591,1733950240508,-155.999452,0.00030678,7]
[345048593,1733950240518,-155.999452,0.00030678,7]
[345048595,1733950240527,-155.999452,0.00030678,7]
[345048597,1733950240537,-155.999452,0.00030678,7]
[345048599,1733950240548,-155.999452,0.00030678,7]
[345048601,1733950240557,-155.999452,0.00030678,7]
[345048603,1733950240567,-155.999452,0.00030678,7]
[345048605,1733950240576,-155.999452,0.00030678,7]
[345048607,1733950240586,-155.999452,0.00030678,7]
[345048609,1733950240595,-155.999447,0.00030678,7]
[345048611,1733950240604,-151.0,0.00030678,7]
[345048613,1733950240613,-151.0,0.00030678,7]
[345048615,1733950240622,-151.0,0.00030678,7]
[345048617,1733950240632,-151.0,0.00030678,7]
[345048619,1733950240643,-151.0,0.00030678,7]
[345048621,1733950240652,-151.0,0.00030678,7]
[345048623,1733950240661,-151.0,0.00030678,7]
[345048625,1733950240671,-151.0,0.00030678,7]
[345048627,1733950240681,-151.0,0.00030678,7]
[345048629,1733950240691,-272.022916,0.00030678,7]
[345048631,1733950240701,-151.0,0.00030678,7]
[345048633,1733950240710,-291.410438,0.00030678,7]
[345048635,1733950240720,-151.0,0.00030678,7]
[345048637,1733950240729,-151.0,0.00030678,7]
[345048639,1733950240738,-151.0,0.00030678,7]
[345048641,1733950240748,-151.0,0.00030678,7]
[345048643,1733950240757,-151.0,0.00030678,7]
[345048645,1733950240766,-151.0,0.00030678,7]
[345048647,1733950240775,-151.0,0.00030678,7]
[345048649,1733950240785,-151.0,0.00030678,7]
[345048651,1733950240794,-151.0,0.00030678,7]
[345048653,1733950240803,-151.0,0.00030678,7]
[345048655,1733950240813,-151.0,0.00030678,7]
[345048658,1733950240822,-151.0,0.00030678,7]
[345048660,1733950240832,-151.0,0.00030678,7]
[345048662,1733950240841,-151.0,0.00030678,7]
[345048664,1733950240850,-151.0,0.00030678,7]
[345048666,1733950240860,-151.0,0.00030678,7]
[345048668,1733950240869,-151.0,0.00030678,7]
[345048670,1733950240879,-151.0,0.00030678,7]
[345048672,1733950240890,-151.0,0.00030678,7]
[345048674,1733950240899,-246.965418,0.00030678,7]
[345048676,1733950240908,-289.236586,0.00030678,7]
[345048678,1733950240918,-151.0,0.00030678,7]
[345048680,1733950240927,-151.0,0.00030678,7]
[345048682,1733950240936,-151.0,0.00030678,7]
[345048684,1733950240946,-151.0,0.00030678,7]
[345048686,1733950240955,-151.0,0.00030678,7]
[345048687,1733950240965,-151.0,0.00030678,7]
[345048689,1733950240974,-151.0,0.00030678,7]
[345048691,1733950240984,-151.0,0.00030678,7]
[345048692,1733950240993,-151.0,0.00030678,7]
[345048693,1733950241002,-151.0,0.00030678,7]
[345048695,1733950241011,-151.0,0.00030678,7]
[345048696,1733950241020,-151.0,0.00030678,7]
[345048698,1733950241029,-151.0,0.00030678,7]
[345048700,1733950241038,-151.0,0.00030678,7]
[345048702,1733950241047,-151.0,0.00030678,7]
[345048704,1733950241056,-151.0,0.00030678,7]
[345048706,1733950241065,-151.0,0.00030678,7]
[345048708,1733950241074,-233.197288,0.00030678,7]
[345048710,1733950241083,-153.027583,0.00030678,7]
[345048712,1733950241093,-153.027583,0.00030678,7]
[345048714,1733950241102,-153.027583,0.00030678,7]
[345048716,1733950241111,-153.027583,0.00030678,7]
[345048718,1733950241121,-153.027583,0.00030678,7]
[345048720,1733950241131,-153.027583,0.00030678,7]
[345048721,1733950241142,-153.027583,0.00030678,7]
[345048722,1733950241151,-153.027583,0.00030678,7]
[345048723,1733950241160,-153.027583,0.00030678,7]
[345048724,1733950241169,-153.027583,0.00030678,7]
[345048725,1733950241178,-153.027583,0.00030678,7]
[345048726,1733950241187,-153.027583,0.00030678,7]
[345048727,1733950241196,-153.027583,0.00030678,7]
[345048728,1733950241206,-153.027583,0.00030678,7]
[345048729,1733950241215,-153.027583,0.00030678,7]
[345048730,1733950241224,-153.027583,0.00030678,7]
[345048731,1733950241233,-153.027583,0.00030678,7]
[345048732,1733950241242,-153.027583,0.00030678,7]
[345048733,1733950241251,-153.027583,0.00030678,7]
[345048734,1733950241260,-153.027575,0.00030678,7]
[345048735,1733950241269,-14801.31367753,0.00030678,2]
[345048736,1733950241279,-72534.46249629,0.00030678,10]
[345049060,1733950360377,163.265059,0.00013973,2]
[345049063,1733951025890,2399.0,0.00026,60]
[345049064,1733951164322,288.0,0.0002,3]
[345049065,1733951164642,285.0,0.0002,3]
[345049066,1733951164962,285.0,0.0002,3]
[345049067,1733951165276,285.0,0.0002,3]
[345049072,1733951324540,165.203702,0.00013973,2]
[345049747,1733951438067,-165.203702,0.00021209,2]
[345049749,1733951438076,-175.610335,0.00027825,2]
[345049751,1733951438087,-300.0,0.00028071,2]
[345049753,1733951438096,-1204.185963,0.00028072,2]
[345049761,1733951438181,-17532.6926684,0.00028072,2]
[345049763,1733951438191,-1265.47684017,0.00028333,2]
[345049769,1733951438240,-5677.77516173,0.00028333,2]
[345049771,1733951438250,-165.203702,0.00028445,2]
[345049773,1733951438259,-342.240695,0.00028468,2]
[345049775,1733951438268,-213.894179,0.00028543,2]
[345049777,1733951438277,-524.886,0.0002915,2]
[345049779,1733951438287,-447.34,0.00029674,2]
[345049782,1733951438296,-392.80502754,0.000297,2]
[345049783,1733951438305,-3000.0,0.000298,2]
[345049785,1733951438314,-300.0,0.000298,14]
[345049787,1733951438323,-3000.0,0.0002981,2]
[345049789,1733951438333,-3000.0,0.0002982,2]
[345049791,1733951438342,-533.0,0.00029823,2]
[345049793,1733951438351,-2370.0,0.00029823,2]
[345049795,1733951438361,-2161.0,0.00029823,2]
[345049797,1733951438370,-853.43152741,0.00029829,2]
[345049799,1733951438379,-392.80502752,0.0002983,2]
[345049801,1733951438388,-3000.0,0.0002983,2]
[345049803,1733951438398,-3000.0,0.0002984,2]
[345049805,1733951438407,-3000.0,0.0002985,2]
[345049807,1733951438416,-3000.0,0.0002986,2]
[345049809,1733951438426,-175.132,0.00029862,24]
[345049811,1733951438435,-180.46513138,0.00029862,2]
[345049813,1733951438444,-613.03980192,0.00029862,2]
[345049815,1733951438454,-190.77628322,0.00029863,2]
[345049817,1733951438463,-8317.63148759,0.00029863,2]
[345049819,1733951438474,-13780.44730482,0.00029863,2]
[345050668,1733952432854,164.822085,0.00013973,2]
[345050669,1733952433074,164.822085,0.00020807,2]
[345050729,1733952632432,-1866.5,0.00023,2]
[345050731,1733952632445,-558.21120081,0.00023,2]
[345050734,1733952632456,-1100.89151516,0.00023,2]
[345050741,1733952632515,-386.14717518,0.00023,2]
[345050743,1733952632525,-343.55762178,0.00025204,5]
[345050745,1733952632535,-270.15120304,0.00025999,2]
[345051361,1733952638269,-29.84879696,0.00025999,2]
[345051363,1733952638283,-300.0,0.00025999,2]
[345051365,1733952638292,-675.30720304,0.00026,30]
[345051368,1733952638303,-7039.57076521,0.00026,30]
[345051780,1733952643306,-13285.12203253,0.00026,30]
[345051781,1733952643315,-171.120348,0.00027388,2]
[345051782,1733952643324,-214.2706,0.00027397,2]
[345051783,1733952643333,-398.63285264,0.00027439,2]
[345051784,1733952643371,-877.04952956,0.00027439,2]
[345051785,1733952643380,-164.822085,0.00027641,2]
[345051786,1733952643390,-182.70294344,0.00028037,2]
[345051851,1733953411646,164.527467,0.00013973,2]
[345051852,1733953411858,164.527467,0.00020447,2]
[345051924,1733953836116,-1055.73075949,0.00021466,2]
[345051926,1733953836129,-164.527467,0.00026921,2]
[345051928,1733953836141,-231.02535589,0.00027397,60]
[345051933,1733953836177,-169.81337031,0.00027397,60]
[345051935,1733953836189,-133.70258569,0.00027502,2]
[345051962,1733953836439,-346.51241431,0.00027502,2]
[345051965,1733953836452,-171.120348,0.00027719,2]
[345051967,1733953836465,-2861.276608,0.00027746,2]
[345051969,1733953836477,-351.3069041,0.00027808,30]
[345051971,1733953836490,-351.3069039,0.00027808,30]
[345051974,1733953836502,-300.0,0.00027881,2]
[345051976,1733953836514,-17.16597168,0.00027881,2]
[345051979,1733953836530,-282.83402832,0.00027881,2]
[345051981,1733953836543,-351.3069039,0.00027882,30]
[345051984,1733953836556,-351.3069041,0.00027941,30]
[345051986,1733953836568,-168.5461305,0.00027941,30]
[345051988,1733953836581,-413.4029454,0.00027982,30]
[345051991,1733953836595,-306.0,0.00028219,30]
[345051993,1733953836610,-61.05308778,0.00028219,30]
[345051996,1733953836625,-152.49920512,0.00028219,30]
[345051998,1733953836637,-305.9284392,0.00028219,30]
[345052000,1733953836650,-93.22912068,0.00028219,30]
[345052003,1733953836666,-212.69931852,0.00028219,30]
[345052005,1733953836678,-213.5522929,0.00028219,30]
[345052008,1733953836691,-306.0,0.00028256,30]
[345052010,1733953836703,-213.5522929,0.00028256,30]
[345052012,1733953836715,-153.0,0.00028849,30]
[345052014,1733953836725,-153.0,0.00028849,30]
[345052016,1733953836735,-153.0,0.00028849,30]
[345052018,1733953836745,-153.0,0.00028849,30]
[345052020,1733953836755,-159.1602842,0.00028849,30]
[345052038,1733953836928,-175.133,0.00028941,21]
[345052040,1733953836940,-303.03030303,0.00029,2]
[345052042,1733953836950,-500.0,0.00029077,7]
[345052044,1733953836959,-527.411,0.0002915,2]
[345052046,1733953836969,-417.16446778,0.0002929,2]
[345052048,1733953836980,-292.08221257,0.000296,2]
[345052050,1733953836990,-382.6,0.00029646,2]
[345052052,1733953837000,-2370.0,0.00029646,2]
[345052054,1733953837009,-2161.0,0.00029646,2]
[345052056,1733953837019,-11346.6148281,0.00029699,2]
[345052165,1733953838282,-1199.45074879,0.00029699,2]
[345052173,1733953838346,-4710.13376355,0.00029699,2]
[345052385,1733953840359,-96817.51219983,0.00029699,2]
[345052387,1733953840376,-190.77628321,0.00029699,2]
[345052390,1733953840387,-58674.41870421,0.000297,2]
[345052392,1733953840398,-834.65964243,0.000297,2]
[345052394,1733953840407,-292.08221251,0.00029744,2]
[345052396,1733953840418,-592.29447918,0.00029762,2]
[345052398,1733953840428,-170.60625,0.00029763,7]
[345052400,1733953840437,-170.60625,0.00029763,7]
[345052402,1733953840447,-152.627305,0.00029763,7]
[345052404,1733953840458,-265.261898,0.00029763,7]
[345052406,1733953840468,-265.261898,0.00029763,7]
[345052408,1733953840478,-160.28866154,0.00029763,7]
[345052410,1733953840487,-160.28866154,0.00029763,7]
[345052412,1733953840497,-160.28866154,0.00029763,7]
[345052414,1733953840507,-160.28866154,0.00029763,7]
[345052416,1733953840517,-160.28866154,0.00029763,7]
[345052418,1733953840527,-160.28866154,0.00029763,7]
[345052420,1733953840537,-160.28866154,0.00029763,7]
[345052422,1733953840547,-160.28866154,0.00029763,7]
[345052424,1733953840557,-160.28866154,0.00029763,7]
[345052426,1733953840567,-160.28866154,0.00029763,7]
[345052428,1733953840576,-160.28866154,0.00029763,7]
[345052430,1733953840586,-160.28,0.00029763,7]
[345052432,1733953840596,-151.85241619,0.00029763,7]
[345052434,1733953840606,-151.85241619,0.00029763,7]
[345052436,1733953840617,-151.85241619,0.00029763,7]
[345052438,1733953840627,-151.85241619,0.00029763,7]
[345052440,1733953840636,-151.85241619,0.00029763,7]
[345052442,1733953840646,-151.85241619,0.00029763,7]
[345052444,1733953840655,-151.85241619,0.00029763,7]
[345052446,1733953840666,-151.85241619,0.00029763,7]
[345052448,1733953840676,-151.85241619,0.00029763,7]
[345052451,1733953840686,-151.85241619,0.00029763,7]
[345052453,1733953840696,-151.85241619,0.00029763,7]
[345052455,1733953840707,-151.85241619,0.00029763,7]
[345052457,1733953840716,-151.85241619,0.00029763,7]
[345052459,1733953840726,-151.85241619,0.00029763,7]
[345052461,1733953840736,-151.85241619,0.00029763,7]
[345052463,1733953840746,-151.85241619,0.00029763,7]
[345052465,1733953840756,-151.85241619,0.00029763,7]
[345052467,1733953840767,-151.85241619,0.00029763,7]
[345052469,1733953840778,-151.85,0.00029763,7]
[345052471,1733953840788,-666.0,0.00029763,2]
[345052473,1733953840798,-140329.24409928,0.00029763,21]
[345052476,1733953840811,-489.19932677,0.00029763,21]
[345052736,1733953843451,-2465.5171,0.00029763,21]
[345052743,1733953843509,-404.525,0.00029763,21]
[345052746,1733953843520,-6442.32581193,0.00029763,21]
[345053085,1733954313991,194.133961,0.00013973,2]
[345053086,1733954314234,194.133961,0.00020447,2]
[345053096,1733954793750,300.325308,0.00026,60]
[345053156,1733955032725,-383.59104,0.00023535,2]
[345053158,1733955032735,-5000.0,0.00023554,11]
[345053160,1733955032744,-250.0,0.00023792,2]
[345053162,1733955032754,-300.0,0.00024261,2]
[345053163,1733955032763,-300.0,0.00024261,2]
[345053165,1733955032773,-24900.0,0.00024262,2]
[345053166,1733955032782,-525.49516221,0.00024332,2]
[345053167,1733955032791,-160.402864,0.00024432,2]
[345053169,1733955032800,-3547.1626903,0.00024517,2]
[345053170,1733955032809,-186.210092,0.00024596,2]
[345053171,1733955032819,-180.21521658,0.00024752,2]
[345053172,1733955032828,-25529.0876361,0.00024853,2]
[345053173,1733955032837,-182.985,0.00025187,9]
[345053175,1733955032846,-525.49516219,0.00025232,2]
[345053177,1733955032855,-267.546676,0.00025313,2]
[345053178,1733955032867,-160.402864,0.00025638,2]
[345053179,1733955032876,-1725.2480251,0.00026063,2]
[345053181,1733955032885,-525.49516219,0.00026131,2]
[345053182,1733955032894,-162.231205,0.00026168,2]
[345053184,1733955032903,-420.0,0.00026303,2]
[345053185,1733955032912,-637.8160165,0.00026488,2]
[345053187,1733955032921,-420.0,0.00026687,2]
[345053189,1733955032930,-160.402864,0.00026843,2]
[345053191,1733955032939,-181.552526,0.00026852,2]
[345053192,1733955032949,-194.133961,0.00026921,2]
[345053193,1733955032958,-40133.19742996,0.00027,2]
[345053194,1733955032968,-525.49516219,0.00027031,2]
[345053195,1733955032977,-181.552526,0.00027253,2]
[345053196,1733955032987,-161.7163616,0.00027397,2]
[345053197,1733955032996,-181.552526,0.00027655,2]
[345053198,1733955033005,-525.49516219,0.0002793,2]
[345053199,1733955033014,-160.402864,0.00028048,2]
[345053200,1733955033023,-181.552526,0.00028056,2]
[345053201,1733955033033,-544.37,0.0002837,2]
[345053202,1733955033043,-181.552526,0.00028458,2]
[345053203,1733955033052,-587.0,0.00028516,2]
[345053204,1733955033062,-2630.75476816,0.00028583,2]
[345053205,1733955033072,-525.49516219,0.0002883,2]
[345053206,1733955033081,-181.552526,0.00028859,2]
[345053207,1733955033091,-170.0,0.00029,120]
[345053208,1733955033101,-587.0,0.00029356,2]
[345053209,1733955033114,-689.56125507,0.00029663,2]
[345053210,1733955033128,-1049.82005225,0.00029663,2]
[345053211,1733955033138,-689.56125506,0.00029672,2]
[345053212,1733955033147,-689.56125506,0.00029682,2]
[345053213,1733955033157,-689.56125506,0.00029691,2]
[345053214,1733955033166,-500.0,0.00029699,7]
[345053215,1733955033176,-2000.0,0.000297,30]
[345053216,1733955033186,-689.56125506,0.000297,2]
[345053217,1733955033195,-154.07911767,0.000297,7]
[345053218,1733955033206,-154.07911767,0.000297,7]
[345053219,1733955033215,-154.07911767,0.000297,7]
[345053220,1733955033225,-154.07911767,0.000297,7]
[345053221,1733955033235,-154.07911767,0.000297,7]
[345053222,1733955033245,-154.07911767,0.000297,7]
[345053223,1733955033256,-154.07911767,0.000297,7]
[345053224,1733955033265,-154.07911767,0.000297,7]
[345053225,1733955033275,-154.07911767,0.000297,7]
[345053226,1733955033285,-154.07911767,0.000297,7]
[345053227,1733955033295,-154.07,0.000297,7]
[345053228,1733955033305,-158.89409009,0.000297,7]
[345053229,1733955033314,-158.89409009,0.000297,7]
[345053230,1733955033324,-158.89409009,0.000297,7]
[345053231,1733955033333,-158.89409009,0.000297,7]
[345053232,1733955033342,-158.89409009,0.000297,7]
[345053233,1733955033351,-158.89409009,0.000297,7]
[345053234,1733955033362,-158.89409009,0.000297,7]
[345053235,1733955033371,-158.89409009,0.000297,7]
[345053236,1733955033381,-158.89409009,0.000297,7]
[345053237,1733955033390,-158.89409009,0.000297,7]
[345053238,1733955033400,-158.89409009,0.000297,7]
[345053239,1733955033410,-158.89409009,0.000297,7]
[345053240,1733955033419,-158.89409009,0.000297,7]
[345053241,1733955033428,-158.89409009,0.000297,7]
[345053242,1733955033438,-158.89409009,0.000297,7]
[345053243,1733955033448,-525.49516219,0.00029729,2]
[345053244,1733955033457,-702.6138078,0.00029753,30]
[345053245,1733955033467,-351.3069039,0.00029753,30]
[345053246,1733955033476,-351.3069041,0.00029753,30]
[345053247,1733955033486,-351.3069039,0.00029753,30]
[345053248,1733955033496,-351.3069041,0.00029753,30]
[345053249,1733955033506,-202.32475187,0.00029762,2]
[345053250,1733955033516,-500.0,0.00029762,2]
[345053251,1733955033526,-500.0,0.00029762,2]
[345053252,1733955033536,-500.0,0.00029762,2]
[345053253,1733955033545,-400.68428739,0.00029762,2]
[345053254,1733955033554,-500.0,0.00029762,2]
[345053255,1733955033564,-468.18973818,0.00029762,2]
[345053256,1733955033574,-1000.0,0.00029762,14]
[345053257,1733955033584,-1000.0,0.00029762,6]
[345053258,1733955033594,-414.60613543,0.00029762,2]
[345053259,1733955033604,-101519.09261886,0.00029763,2]
[345053260,1733955033617,-318.90624377,0.00029763,2]
[345053261,1733955033627,-151.0,0.00029763,7]
[345053262,1733955033637,-151.0,0.00029763,7]
[345053263,1733955033648,-151.0,0.00029763,7]
[345053264,1733955033662,-151.0,0.00029763,7]
[345053265,1733955033671,-151.0,0.00029763,7]
[345053266,1733955033681,-151.0,0.00029763,7]
[345053267,1733955033691,-151.0,0.00029763,7]